Cogmind - Beta 16 @@@ ROGUE MODE // 2025.11.15 @ 11:07:54 Player: f3-rnm Result: Destroyed by G-34 Mercenary with Small Laser Performance ------------- Evolutions (0) 0 Regions Visited (1) 200 Robots Destroyed (18) 90 Value Destroyed (505) 505 Prototype IDs (0) 0 Alien Tech Used (0) 0 Bonus (0) 0 TOTAL SCORE: 795 Bonus ------- None Cogmind --------- Core Integrity 0/250 Matter 300/300 Energy 124/125 System Corruption 0% Temperature Cool (6) Movement Core (250) Ox4 Location -10/Materials Parts ------- > --- POWER (1) -------- Light Ion Engine > --- PROPULSION (2) --- (None) > --- UTILITY (2) ------ Small Storage Unit Light Armor Plating > --- WEAPON (2) ------- Hammer > --- INVENTORY (8) ---- Compact Wheel Light Assault Rifle Grenade Launcher Peak State ------------ > --- POWER ------------ Light Ion Engine > --- PROPULSION ------- Light Treads Light Treads > --- UTILITY ---------- Small Storage Unit Light Armor Plating > --- WEAPON ----------- Hammer > --- INVENTORY -------- Compact Wheel Light Assault Rifle Grenade Launcher [Rating: 6] Favorites ----------- Power Light Ion Engine Engine Light Ion Engine Propulsion Light Treads Treads Light Treads Utility Light Armor Plating Storage Small Storage Unit Protection Light Armor Plating Weapon Light Assault Rifle Ballistic Gun Light Assault Rifle Impact Weapon Hammer Build | -11 -10 ------- Run | Yrd Mat Slots Evolved . | . . Power . | . . Propulsion . | . . Utility . | . . Weapon . | . . Parts Attached 9 | 5 4 Power 2 | 1 1 Engine 2 | 1 1 Core . | . . Reactor . | . . Propulsion 2 | 2 . Treads 2 | 2 . Leg . | . . Wheel . | . . Hover . | . . Flight . | . . Utility 2 | . 2 Device . | . . Storage 1 | . 1 Processor . | . . Hackware . | . . Protection 1 | . 1 Artifact . | . . Weapon 3 | 2 1 Energy Gun . | . . Energy Cannon . | . . Ballistic Gun 2 | 2 . Ballistic Cannon . | . . Launcher . | . . Special Weapon . | . . Impact Weapon 1 | . 1 Slashing Weapon . | . . Piercing Weapon . | . . Special Melee Weapon . | . . Unidentified Prototypes . | . . Parts Lost 4 | . 4 Power 1 | . 1 Propulsion 2 | . 2 Utility . | . . Weapon 1 | . 1 Highest Loss Streak 2 | . 2 To Critical Strikes . | . . Average Backups 3 | 1 4 Power . | . . Propulsion . | . 1 Utility . | . . Weapon 1 | . 1 Tool/Special . | . . Unused Backups 2 | . 2 Power . | . . Propulsion 1 | . 1 Utility . | . . Weapon 1 | . 1 Tool/Special . | . . Average Slot Usage (%) 67 | . 67 Engine 13 | . 13 Treads 24 | . 24 Storage 3 | . 3 Protection 5 | . 5 Ballistic Gun 9 | . 9 Impact Weapon 10 | . 10 Peak Build Rating 6 | 5 6 Average Rating 4 | 4 4 On Entrance 2 | . 5 Avg Prop Armor Cover (%) . | . . Naked Turns . | . . Heaviest Build 13 | 5 13 Greatest Support 40 | 40 40 Greatest Overweight (x) 4 | . 4 Average Overweight (x) . | . . Largest Inventory Capacity 8 | 5 8 Average Capacity 5 | 5 5 Most Carried 5 | 3 5 Average Carried 4 | 2 4 Final Capacity 8 | 5 8 Final Carried 3 | 3 3 Class Distribution -------------------- 100% | Mutant Dominant Class ---------------- Mutant | -10/Materials Resources | -11 -10 ----------- Run | Yrd Mat Matter Collected 291 | 194 97 Remotely . | . . Salvage Created 749 | . 749 Parts 19 | . 19 Haulers Intercepted 1 | . 1 Recyclers Shooed . | . . Parts Field Recycled . | . . Retrieved Matter . | . . Parts Self-Destructed . | . . Prevented . | . . Parts Restored . | . . Kills | -11 -10 ------- Run | Yrd Mat Combat Hostiles Destroyed 13 | . 13 Melee 9 | . 9 Classes Destroyed 4 | . 4 Worker 3 | . 3 Hauler 1 | . 1 Recycler 1 | . 1 Grunt 13 | . 13 Best Kill Streak 6 | . 6 Combat Bots Only 4 | . 4 Max Kills in Single Turn 1 | . 1 Gunslinging . | . . Exploded . | . . Melee 1 | . 1 Uniques/NPCs Destroyed . | . . Combat | -11 -10 -------- Run | Yrd Mat Hostile Shots Fired 91 | . 91 Missed 23 | . 23 Hits 68 | . 68 Projectile 68 | . 68 Critical Strikes 1 | . 1 Damage Taken 838 | . 838 Core 253 | . 253 Absorbed by Shields . | . . Core Remaining (%) 100 | 100 . Volleys Fired 1 | . 1 Largest 1 | . 1 Hottest 20 | . 20 Shots Fired 1 | . 1 Gun 1 | . 1 Cannon . | . . Launcher . | . . Special . | . . Kinetic 1 | . 1 Thermal . | . . Explosive . | . . Electromagnetic . | . . Robot Hit Streak . | . . Robot Miss Streak 1 | . 1 Penetration Max . | . . Secondary Targets . | . . Shots Hit Robots 49 | . 49 Core Hits 10 | . 10 Critical Kills 5 | . 5 Critical Parts Destroyed 9 | . 9 Critical Strikes 14 | . 14 Smash 14 | . 14 Melee Attacks 55 | . 55 Impact 55 | . 55 Slashing . | . . Piercing . | . . Sneak Attacks 5 | . 5 Combat Hostiles . | . . Follow-up Attacks . | . . Damage Inflicted 1488 | . 1488 Guns . | . . Cannons . | . . Explosions . | . . Melee 1488 | . 1488 Ramming . | . . Kinetic . | . . Thermal . | . . Explosive . | . . Electromagnetic . | . . Impact 1488 | . 1488 Slashing . | . . Piercing . | . . Highest Corruption . | . . Average Corruption . | . . Corruption Purged . | . . Corruption Blocked . | . . Overload Shots . | . . Overflow Damage 372 | . 372 Projectiles . | . . Explosions . | . . Melee 372 | . 372 Knockbacks 6 | . 6 Impact 6 | . 6 Kinetic . | . . Secondary . | . . Self-Inflicted Damage . | . . Shots . | . . Rammed . | . . Targets Rammed . | . . Kicked . | . . Crushed . | . . Highest Temperature 10 | . 10 Average Temperature 10 | . 10 Received Heat Transfer 495 | . 495 Siege Activations . | . . Martial Activations . | . . Shielding Activations . | . . Robots Disrupted . | . . Combat Hostiles . | . . Robots Corrupted 8 | . 8 Combat Hostiles 4 | . 4 Parts Fried 8 | . 8 Impact Corruptions 15 | . 15 Robots Melted . | . . Combat Hostiles . | . . Parts Melted . | . . Heat Transferred . | . . Parts Sabotaged . | . . Parts Stolen . | . . Parts Stripped . | . . Power Chain Reactions . | . . Alert | -11 -10 ------- Run | Yrd Mat Maximum Alert Level 1 | . 1 Low Security (%) 82 | 100 78 Level 1 17 | . 21 Level 2 . | . . Level 3 . | . . Level 4 . | . . Level 5 . | . . High Security . | . . Max Security . | . . Peak Influence 308 | . 308 Initial . | . . Average 91 | . 109 Influence Increases 488 | . 488 Destroy 0b10 Robot/C 260 | . 260 Destroy 0b10 Robot/NC 25 | . 25 Destroy Leader 52 | . 52 Destroy Structure 1 | . 1 Lose Combat Pursuer 150 | . 150 Influence Decreases 196 | . 196 Time Decay 156 | . 156 Lost Part 40 | . 40 Squads Dispatched 2 | . 2 Investigation . | . . Extermination . | . . Reinforcement 2 | . 2 Assault . | . . Garrison . | . . Intercept . | . . Searches Triggered . | . . Construction Impeded . | . . Haulers Reinforced . | . . Active Scanning Responses . | . . Cargo Convoy Interrupts . | . . Stealth | -11 -10 --------- Run | Yrd Mat Distress Signals 4 | . 4 Communications Jammed . | . . Distress Signals . | . . Times Spotted 29 | . 29 Peak Tracking Total 6 | . 6 Tactical Retreats 8 | . 8 Traps | -11 -10 ------- Run | Yrd Mat Traps Triggered . | . . Indirectly . | . . Trap Hack Attempts . | . . Triggered . | . . Disarmed . | . . Reprogrammed . | . . Reused . | . . Traps Extracted . | . . Installed . | . . Triggered . | . . Machines | -11 -10 ---------- Run | Yrd Mat Machines Disabled . | . . Max in Single Turn . | . . Machines Repaired . | . . Machines Dismantled . | . . Machines Sabotaged . | . . Overloaded Fab Kills . | . . Hacking | -11 -10 --------- Run | Yrd Mat Machines Accessed . | . . Terminals . | . . Fabricators . | . . Repair Stations . | . . Recycling Units . | . . Scanalyzers . | . . Garrison Access . | . . Total Hacks . | . . Successful . | . . Failed . | . . Catastrophic . | . . Database Lockouts . | . . Manual . | . . Terminals . | . . Fabricators . | . . Repair Stations . | . . Recycling Units . | . . Scanalyzers . | . . Garrison Access . | . . Terminal Hacks . | . . Fabricator Hacks . | . . Repair Station Hacks . | . . Recycling Unit Hacks . | . . Scanalyzer . | . . Garrison Access Hacks . | . . Unauthorized Hacks . | . . Terminals . | . . Fabricators . | . . Repair Stations . | . . Recycling Units . | . . Scanalyzers . | . . Garrison Access . | . . Data Cores Recovered . | . . Used . | . . Hacking Detections . | . . Full Trace Events . | . . Feedback Events . | . . Feedback Blocked . | . . Robot Schematics Acquired . | . . Robots Built . | . . Authchips . | . . Time . | . . Total Robot Build Rating . | . . Part Schematics Acquired . | . . Parts Built . | . . Authchips . | . . Time . | . . Total Part Build Rating . | . . Part Studies Acquired . | . . Parts Repaired . | . . Time . | . . Parts Recycled . | . . Recycled Matter . | . . Retrieved Matter . | . . Retrieved Components . | . . Parts Scanalyzed . | . . Part Schematics Acquired . | . . Parts Damaged . | . . Bothacking | -11 -10 ------------ Run | Yrd Mat Used RIF Installer . | . . Robots Hacked . | . . Non-combat . | . . Combat . | . . Robot Hacks Applied . | . . Relay Couplers Released . | . . Fabnet Peak Effective % . | . . Robots Rewired . | . . Allies Hacked . | . . Hacks Repelled . | . . Allies | -11 -10 -------- Run | Yrd Mat Total Allies . | . . Largest Group . | . . Highest-Rated Group . | . . Highest-Rated Ally . | . . Total Orders . | . . Ally Attacks . | . . Total Damage . | . . Kills . | . . Allies Corrupted . | . . Allies Melted . | . . Intel | -11 -10 ------- Run | Yrd Mat Active Infowar (turns) . | . . Robot Analysis Total . | . . Derelict Logs Recovered . | . . Drone Launches . | . . Drone Recoveries . | . . Exploration | -11 -10 ------------- Run | Yrd Mat Turns Passed 514 | 86 428 Spaces Moved 185 | 49 136 Core 20 | 2 18 Treads 165 | 47 118 Legs . | . . Wheels . | . . Hover . | . . Flight . | . . Fastest Speed 50 | 50 160 Average Speed 167 | 155 171 Slowest Speed 250 | 160 250 Overloaded Moves . | . . Propulsion Burnouts . | . . Robots Hopped . | . . Potential Cave-ins . | . . Cave-ins Triggered . | . . Exploration Rate (%) 16 | 3 29 Regions Visited 1 Branch Regions . Pre-discovered Areas . | . . Known Exits Taken . | . . Unknown Exits Taken 1 | 1 . Scrap Searched . | . . Spaces Dug . | . . Terrain Destroyed . | . . Melee . | . . Projectile . | . . AOE . | . . Terrain Rammed . | . . Walls Destroyed . | . . Machines Disabled . | . . Actions | -11 -10 --------- Run | Yrd Mat Total 290 | 56 234 Wait 36 | . 36 Move 184 | 48 136 Hop . | . . Pick Up 5 | 3 2 Fast Attach 6 | 5 1 Attach 2 | . 2 Detach . | . . Swap 1 | . 1 Drop . | . . Fire 1 | . 1 Melee 55 | . 55 Ram . | . . Kick . | . . Crush . | . . Escape Stasis . | . . Rewire . | . . Trap . | . . Miscellaneous . | . . Route ------- -11/Scrapyard -10/Materials (discovered 1 exit: [*Min]) History --------- Turn | Location | Event 8 | -11/Scrapyard | Discovered new exit (range 16) 87 | -11/Scrapyard | Entered Materials 185 | -10/Materials | Discovered new exit (range 14) 308 | -10/Materials | Build established: Mutant 389 | -10/Materials | Core integrity fell below 50% 447 | -10/Materials | Core integrity fell below 20% 515 | -10/Materials | Destroyed by G-34 Mercenary with Small Laser Last Messages --------------- 00460_ K-01 Serf collects debris. 00461_ Lgt. Treads destroyed. 00463_ G-34 Mercenary suffers critical hit (Smash). 00463_ Destroyed Heat Sink. 00463_ G-34 Mercenary system corrupted by crushing effect. 00463_ G-34 Mercenary destroyed. 00464_ K-01 Serf collects debris. 00470_ G-34 Mercenary IFF system glitched. 00472_ G-34 Mercenary misfires. 00473_ K-01 Serf collects debris. 00473_ Sneak attack on K-01 Serf. 00473_ K-01 Serf destroyed. 00474_ K-01 Serf collects debris. 00479_ G-34 Mercenary misfires. 00480_ K-01 Serf collects debris. 00485_ G-34 Mercenary destroyed. 00486_ K-01 Serf collects debris. 00493_ R-06 Scavenger collects Lgt. Nuclear Core. 00498_ R-06 Scavenger collects Aluminum Leg. 00501_ K-01 Serf collects debris. Map ----- +----------------------------------------------------+ | ?????????????????????????????????????????????? | | ?????????????????????????????????????????????? | | ?????????????????????????????????????????????? | | ?????????????????????????????????????????????? | | ?????????????????????????????????????????????? | | ?????????????????????????????????????????????? | | ?????????????????????????????????????????????? | | ?????????????????????????????????????????????? | | ?????????????????????????????????????????????? | | ?????????????????????????????????????????????? | | ???????????????????????????????????? ????????? | | ??????????????????????????????????? ??????? | | ?????????????????????????????????? !?????? | | ?????????????????????????????????# < "?????? | | ??????????????"??????????????????# |?????? | | ??????????????"" ????????????????? ?????? | | ?????????? """ ???????????????? "??????? | | ?????????? #########?"" ??# ##?????? | | ????????? #"""???# ??????? | | ????????? #""????# #??????? | | ????????? / ?????# #??????? | | ????????????????######## #?????## ##?????? | | ????????????????# *#[!k####### #?????? | | ????????????????#! """%# [ =w%/ #?????? | | ????????????????# ""% /g% /= T #?????? | | ????????????????# ""@%# % % ####### | | ????????????????# *=###+####### %% | | ????????????????# """ # !#?####+######### | | ????????????????# """ #] #?# #???? | | ????????????????# """ # #?#""""" #???? | | ????????????????# # "Y" #?#""""" #???? | | ????????????????# """ # """ #?#""""" !#???? | | ????????????????# """ #! #?#""""" #???? | | ????????????????#???"" ########?#""""" #???? | | ????????????????????? #????????#""""% #???? | | ?????????????????????###????????#""""" %##### | | ????????????????????????????????# =+% | | ????????????????????????????????############## | | ?????????????????????????????????????????????? | | ?????????????????????????????????????????????? | | ?????????????????????????????????????????????? | | ?????????????????????????????????????????????? | | ?????????????????????????????????????????????? | | ?????????????????????????????????????????????? | | ?????????????????????????????????????????????? | | ?????????????????????????????????????????????? | | ?????????????????????????????????????????????? | | ?????????????????????????????????????????????? | | ?????????????????????????????????????????????? | | ?????????????????????????????????????????????? | +----------------------------------------------------+ Best States ------------- Heat Dissipation 25 Energy Generation 10 Energy Capacity 125 Matter Stores 300 Matter Capacity 300 Sight Range 16 Terrain Scan Density 10 Armor Coverage 150 Evasion (%) 40 Recoil Reduction 2 Item Schematics ----------------- None Robot Schematics ------------------ None Fabricated ------------ Nothing Repaired ---------- Nothing Studied --------- None Alien Tech Used ----------------- None Achievements -------------- None Challenges ------------ None Game ------ Seed TrackerLobotomyShifter Manual? 0 Play Time 00:05:17 Cumulative 409.3 hours Start 2025.11.15 @ 11:04:47 End 2025.11.15 @ 11:07:54 Sessions 1 Manual Loads 0 Difficulty Rogue Special Mode None Game No. 368 Rogue 332 Adventurer 36 Explorer 0 Win Type - Total 16 Types 7/0/9/0/0/0/0/0/0/0 Lore% 72 Gallery% 85 Achievement% 61 Wizard Run 0 Options --------- Layout 0 ASCII 0 Keyboard 0 Movement Mouse Keybinds 0 Fullscreen 1 Font 18/SmallcapsGlow Map View 76x50 Zoom Use 0% Tactical HUD 1 Map Filters NONE Filters NONE Steam 1 RUN: 9d3cd744-556a-4615-93d4-cf4ff9121c66